bitfinex/quotes_BTCUSD_20260215
["timestamp","ask_amount","ask_price","bid_price","bid_amount"]
[1771132815075,0.0004,70496.0,70470.0,0.75878588]
[1771132815076,0.00012,70470.0,70452.0,0.0709703]
[1771132815269,0.07095918,70464.0,70452.0,0.20608661]
[1771132815480,0.07095918,70464.0,70455.0,0.02263826]
[1771132815732,0.07096012,70463.0,70456.0,0.02263826]
[1771132815943,0.07096172,70461.0,70456.0,0.02263826]
[1771132816363,0.07096023,70462.0,70456.0,0.02263826]
[1771132816569,0.07096158,70461.0,70456.0,0.02263826]
[1771132816802,0.07096165,70461.0,70456.0,0.02263826]
[1771132817023,0.23077404,70470.0,70456.0,0.02263826]
[1771132817244,0.07095696,70466.0,70456.0,0.02263826]
[1771132817431,0.07095968,70463.0,70456.0,0.02263826]
[1771132817952,0.07096043,70462.0,70456.0,0.02263826]
[1771132818160,0.07396133,70461.0,70456.0,0.03863826]
[1771132818371,0.07096133,70461.0,70456.0,0.02263826]
[1771132818756,0.07096133,70461.0,70456.0,0.03863826]
[1771132818959,0.07096029,70462.0,70456.0,0.016]
[1771132819198,0.07095968,70463.0,70455.0,0.09360517]
[1771132819402,0.07095968,70463.0,70455.0,0.07096691]
[1771132819709,0.07095968,70463.0,70457.0,0.02263826]
[1771132819962,0.28382765,70466.0,70450.0,0.00012]
[1771132820169,0.070967,70457.0,70450.0,0.02275826]
[1771132820999,0.070967,70457.0,70456.0,0.0002]
[1771132821214,0.070967,70457.0,70440.0,0.28404891]
[1771132821215,0.34004,70460.0,70432.0,0.20608661]
[1771132821429,0.00012,70450.0,70435.0,0.02263826]
[1771132821632,0.070979,70444.0,70437.0,0.02263826]
[1771132821836,0.07097937,70443.0,70441.0,0.0002]
[1771132822232,0.07097727,70446.0,70441.0,0.0002]
[1771132822433,0.07097332,70449.0,70441.0,0.0002]
[1771132822591,0.07098038,70442.0,70441.0,0.0002]
[1771132822779,0.001,70444.0,70441.0,0.00031043]
[1771132822995,0.07097332,70449.0,70441.0,0.00031043]
[1771132823218,0.07098038,70442.0,70441.0,0.00631043]
[1771132823679,0.001,70446.0,70434.0,0.0002]
[1771132823900,0.07097735,70445.0,70434.0,0.0006325]
[1771132824107,0.28491346,70446.0,70430.0,0.0006587]
[1771132824108,0.07099045,70432.0,70431.0,1e-08]
[1771132824650,0.07099348,70429.0,70427.0,0.0002]
[1771132824837,0.0709927,70430.0,70428.0,0.00032981]
[1771132825348,0.0709915,70431.0,70428.0,0.00032981]
[1771132825664,0.07099345,70430.0,70423.0,0.07099944]
[1771132825866,0.00012962,70430.0,70424.0,0.07099852]
[1771132826065,0.00112962,70430.0,70428.0,0.009]
[1771132826474,0.00112962,70430.0,70428.0,0.0091323]
[1771132826800,0.00012962,70430.0,70428.0,0.0001323]
[1771132826941,0.07099348,70429.0,70428.0,0.0001323]
[1771132827804,0.07099953,70424.0,70421.0,0.0002]
[1771132828206,0.28397812,70428.0,70421.0,0.0002]
[1771132828431,0.00012962,70430.0,70421.0,0.0002]
[1771132828432,0.07100053,70422.0,70421.0,0.0002]
[1771132828565,0.07100255,70420.0,70419.0,0.0002]
[1771132828768,0.07099852,70424.0,70416.0,0.0002]
[1771132829078,0.07100373,70419.0,70416.0,0.0002]
[1771132829277,0.07100457,70418.0,70410.0,0.02042006]
[1771132830106,0.07100377,70419.0,70411.0,0.07101139]
[1771132830571,0.07100485,70418.0,70411.0,0.07101139]
[1771132831409,0.0710046,70418.0,70411.0,0.07101157]
[1771132831619,0.0710046,70418.0,70413.0,0.0002]
[1771132832018,0.07100565,70417.0,70413.0,0.0002]
[1771132833424,0.07100565,70417.0,70410.0,0.07101263]
[1771132833626,0.07100565,70417.0,70410.0,0.06116263]
[1771132835097,0.07100485,70418.0,70411.0,0.07101137]
[1771132835302,0.07100398,70419.0,70409.0,0.07101333]
[1771132835500,0.07100398,70419.0,70410.0,0.07101259]
[1771132836115,0.07100398,70419.0,70411.0,0.07101147]
[1771132836338,0.07100562,70417.0,70411.0,0.07101147]
[1771132836496,0.07100562,70417.0,70409.0,0.07101333]
[1771132836697,0.0710067,70416.0,70409.0,0.07101358]
[1771132836985,0.00012,70420.0,70405.0,0.36271826]
[1771132837204,0.07100457,70418.0,70410.0,0.07101176]
[1771132837404,0.00012,70420.0,70409.0,0.05677141]
[1771132837605,0.3068264,70422.0,70411.0,0.07101149]
[1771132837606,0.04969317,70417.0,70411.0,0.07101149]
[1771132837809,0.07100372,70419.0,70411.0,0.07101149]
[1771132838014,0.04969196,70418.0,70411.0,0.07101149]
[1771132838209,0.04969196,70418.0,70410.0,0.00012]
[1771132838210,0.02837908,70418.0,70410.0,0.0711323]
[1771132838431,0.07100372,70419.0,70411.0,0.0002]
[1771132838615,0.07100484,70418.0,70411.0,0.0002]
[1771132838942,0.04969294,70417.0,70411.0,0.000285]
[1771132839140,0.02838006,70417.0,70411.0,0.000285]
[1771132839317,0.04969084,70419.0,70411.0,0.000285]
[1771132839519,0.07100523,70418.0,70411.0,0.0002]
[1771132839722,0.04969118,70418.0,70411.0,0.0002]
[1771132839926,0.02837713,70418.0,70411.0,0.0002]
[1771132840275,0.04969121,70418.0,70411.0,0.0002]
[1771132840395,0.04969187,70417.0,70411.0,0.0002]
[1771132840593,0.02837782,70417.0,70411.0,0.0002]
[1771132840821,0.02837679,70419.0,70411.0,0.0002]
[1771132841013,0.07100625,70417.0,70411.0,0.0002]
[1771132841222,0.0496922,70417.0,70411.0,0.0002]
[1771132841558,0.02282191,70420.0,70411.0,0.0002]
[1771132841559,0.0710041,70419.0,70411.0,0.0002]
[1771132841723,0.07100624,70417.0,70411.0,0.0002]
[1771132841935,0.04969219,70417.0,70411.0,0.0002]
[1771132842134,0.04969061,70418.0,70411.0,0.07121152]
[1771132842455,0.02837656,70418.0,70411.0,0.07121117]
[1771132842671,0.02282191,70420.0,70411.0,0.07121117]
[1771132842879,0.07100425,70419.0,70411.0,0.07121117]
[1771132843207,0.04969045,70419.0,70411.0,0.07121117]
[1771132843379,0.02837665,70419.0,70411.0,0.07129617]
[1771132843761,0.07100481,70418.0,70411.0,0.000285]
[1771132843984,0.04969101,70418.0,70411.0,0.000285]
[1771132844191,0.02837721,70418.0,70411.0,0.07129649]
[1771132844485,0.07100454,70420.0,70411.0,0.07129649]
[1771132844686,0.07100563,70417.0,70411.0,0.000285]
[1771132844886,0.02384779,70421.0,70411.0,0.07129658]
[1771132845158,0.07100356,70419.0,70411.0,0.07129658]
[1771132845536,0.07100356,70419.0,70412.0,0.0710106]
[1771132846081,0.07100457,70418.0,70411.0,0.07129649]
[1771132846275,0.07100356,70419.0,70411.0,0.07100144]
[1771132846479,0.02384779,70429.0,70418.0,0.07100396]
[1771132846734,0.02384779,70429.0,70412.0,0.02435525]
[1771132846888,0.02384779,70429.0,70410.0,0.00012]
[1771132846889,0.02384779,70429.0,70418.0,0.07100406]
[1771132847090,0.07099693,70426.0,70418.0,0.07100406]
[1771132847291,0.07099777,70425.0,70418.0,0.07100406]
[1771132847936,0.0709986,70424.0,70417.0,0.07100546]
[1771132848278,0.07100161,70421.0,70414.0,0.07100763]
[1771132848479,0.04968756,70421.0,70414.0,0.07100763]
[1771132848679,0.02837351,70421.0,70414.0,0.07100763]
[1771132848881,0.07099979,70423.0,70414.0,0.07100763]
[1771132849124,0.07100594,70417.0,70410.0,0.02447525]
[1771132849430,0.02384779,70425.0,70410.0,0.02447525]
[1771132849431,0.02384779,70425.0,70410.0,0.00012]
[1771132849672,0.04969077,70418.0,70410.0,0.00012]
[1771132849801,0.04969077,70418.0,70410.0,0.07113183]
[1771132850005,0.02837672,70418.0,70410.0,0.07113183]
[1771132850228,0.07100255,70420.0,70412.0,0.07101028]
[1771132851198,0.07100389,70419.0,70412.0,0.07101028]
[1771132851398,0.04968984,70419.0,70412.0,0.07101028]
[1771132851621,0.02837579,70419.0,70412.0,0.07101028]
[1771132851839,0.07100224,70421.0,70412.0,0.07101028]
[1771132852039,0.07100255,70420.0,70412.0,0.07101028]
[1771132852579,0.07100255,70420.0,70413.0,0.0710094]
[1771132853331,0.07100378,70419.0,70412.0,0.07101048]
[1771132854252,0.07140272,70420.0,70413.0,0.07100935]
[1771132855133,0.07140272,70420.0,70411.0,0.07121127]
[1771132855134,0.02384779,70419.0,70411.0,0.0002]
[1771132855333,0.07100942,70414.0,70411.0,0.0002]
[1771132855544,0.07100973,70413.0,70411.0,0.0002]
[1771132857708,0.07100897,70414.0,70411.0,0.0002]
[1771132858700,0.0710099,70413.0,70411.0,0.0002]
[1771132859356,0.0710099,70413.0,70410.0,0.00012]
[1771132859357,0.07101163,70411.0,70410.0,0.00012]
[1771132859626,0.04969758,70411.0,70410.0,0.00012]
[1771132861735,0.07101071,70412.0,70410.0,0.00012]
[1771132862982,0.02384779,70415.0,70410.0,0.00012]
[1771132863189,0.02384779,70415.0,70410.0,0.07113247]
[1771132863390,0.07100625,70417.0,70410.0,0.07113247]
[1771132863811,0.07100672,70416.0,70410.0,0.00012]
[1771132864011,0.07100764,70415.0,70410.0,0.00012]
[1771132864496,0.07100968,70413.0,70410.0,0.00012]
[1771132864931,0.07101138,70412.0,70410.0,0.00012]
[1771132865239,0.07100961,70413.0,70410.0,0.00012]
[1771132865451,0.07100961,70413.0,70403.0,0.07130399]
[1771132865452,0.07100558,70417.0,70403.0,0.000285]
[1771132865646,0.07101256,70411.0,70403.0,0.0002]
[1771132865952,0.02384779,70417.0,70403.0,0.0002]
[1771132866147,0.20325747,70418.0,70403.0,0.07121904]
[1771132866448,0.07100658,70416.0,70403.0,0.0002]
[1771132866591,0.07101447,70409.0,70403.0,0.0002]
[1771132866797,0.07101241,70411.0,70404.0,0.07101806]
[1771132867345,0.07101268,70410.0,70404.0,0.07101806]
[1771132867543,0.07101268,70410.0,70403.0,0.0002]
[1771132867750,0.07101364,70409.0,70403.0,0.0002]
[1771132868492,0.07101364,70409.0,70400.0,0.04385297]
[1771132868493,0.02384779,70409.0,70400.0,0.00012]
[1771132868630,0.20325747,70410.0,70400.0,0.00012]
[1771132868631,0.09486395,70407.0,70400.0,0.07114254]
[1771132868863,0.02384779,70407.0,70401.0,0.07102164]
[1771132869068,0.09486346,70407.0,70400.0,0.07114236]
[1771132869812,0.09499224,70407.0,70400.0,0.07114236]
[1771132872425,0.02397657,70407.0,70400.0,0.00012]
[1771132872772,0.02397657,70407.0,70401.0,0.0710217]
[1771132872973,0.02397657,70407.0,70402.0,0.07102067]
[1771132874245,0.07101667,70406.0,70400.0,0.00032]
[1771132874419,0.00012878,70407.0,70400.0,0.00032]
[1771132874769,0.07101867,70406.0,70400.0,0.00032]
[1771132874981,0.0710177,70405.0,70400.0,0.00032]
[1771132875197,0.07101734,70406.0,70400.0,0.00032]
[1771132875408,0.07101842,70405.0,70400.0,0.00032]
[1771132875771,0.07101734,70406.0,70400.0,0.00032]
[1771132876011,0.00012878,70407.0,70400.0,0.07134196]
[1771132876336,0.07114449,70407.0,70398.0,0.07102385]
[1771132876576,0.07102354,70400.0,70396.0,0.0002]
[1771132876764,0.02389637,70399.0,70396.0,0.0002]
[1771132877137,0.071023,70400.0,70396.0,0.0002]
[1771132877346,0.07101768,70405.0,70396.0,0.0002]
[1771132877660,0.07102575,70397.0,70396.0,0.0002]
[1771132880533,0.28409761,70399.0,70392.0,0.0002]
[1771132880733,0.02389637,70395.0,70392.0,0.0002]
[1771132881432,0.09492247,70397.0,70392.0,0.0002]
[1771132882398,0.0710318,70391.0,70388.0,7.5e-05]
[1771132882597,0.0710318,70391.0,70384.0,0.07103885]
[1771132882598,0.09492887,70391.0,70384.0,0.07103885]
[1771132883202,0.07103343,70390.0,70383.0,0.07103951]
[1771132883768,0.09492887,70391.0,70383.0,0.07103951]
[1771132884327,0.09492887,70391.0,70382.0,0.07104054]
[1771132884328,0.07103282,70390.0,70382.0,0.07104054]
[1771132884494,0.07103206,70391.0,70384.0,0.07103882]
[1771132884699,0.07103206,70391.0,70382.0,0.07104054]
[1771132885009,0.02389637,70390.0,70384.0,0.07103815]
[1771132888860,0.02389637,70390.0,70385.0,0.07123757]
[1771132890527,0.02389637,70390.0,70385.0,0.0002]
[1771132890699,0.07102958,70394.0,70386.0,0.07103604]
[1771132890844,0.07103043,70393.0,70386.0,0.07103604]
[1771132891299,0.07103043,70393.0,70385.0,0.07123719]
[1771132891300,0.07102978,70393.0,70385.0,0.0002]
[1771132891509,0.07103685,70386.0,70385.0,0.0002]
[1771132893924,0.34036,70400.0,70386.0,0.2025613]
[1771132894248,0.00012,70400.0,70385.0,0.0002]
[1771132894366,0.00012,70400.0,70393.0,0.0710294]
[1771132894767,0.00012,70400.0,70390.0,0.52432814]
[1771132894965,0.00012,70400.0,70398.0,0.07102473]
[1771132895209,0.00012,70400.0,70399.0,0.07102373]
[1771132895996,0.00012,70400.0,70398.0,0.07052473]
[1771132896193,0.00012,70400.0,70399.0,0.07102373]
[1771132896632,0.00012,70400.0,70398.0,0.07102462]
[1771132897620,0.00012,70400.0,70382.0,0.22738201]
[1771132897621,0.02389637,70399.0,70382.0,0.22738201]
[1771132897845,0.07102549,70398.0,70387.0,0.07103492]
[1771132897992,0.02389637,70396.0,70389.0,0.07103312]
[1771132898339,0.02389637,70396.0,70388.0,0.04997332]
[1771132898560,0.02389637,70396.0,70389.0,0.07103382]
[1771132898895,0.02389637,70398.0,70391.0,0.07103155]
[1771132899044,0.09492338,70396.0,70388.0,0.07103403]
[1771132899243,0.02389637,70396.0,70389.0,0.07103342]
[1771132899459,0.02389637,70396.0,70390.0,0.07103244]
[1771132899902,0.02389637,70396.0,70391.0,0.07103164]
[1771132900872,0.02389637,70396.0,70392.0,0.07103079]
[1771132901562,0.02389637,70396.0,70391.0,0.07103166]
[1771132902618,0.02389637,70396.0,70392.0,0.07103009]
[1771132904193,0.02389637,70396.0,70388.0,0.28433814]
[1771132905107,0.02389637,70396.0,70392.0,0.07103065]
[1771132907008,1e-08,70400.0,70399.0,0.09388808]
[1771132907410,1e-08,70400.0,70399.0,0.29502847]
[1771132910005,1e-08,70400.0,70399.0,0.09388808]
[1771132911764,1e-08,70400.0,70398.0,0.04113085]
[1771132912394,1e-08,70400.0,70399.0,0.07102373]
[1771132917453,1e-08,70400.0,70398.0,0.04113085]
[1771132918226,1e-08,70400.0,70398.0,0.0002]
[1771132918440,1e-08,70400.0,70398.0,0.07122458]
[1771132918876,1e-08,70400.0,70398.0,0.0002]
[1771132920167,0.07102454,70399.0,70392.0,0.07102994]
[1771132920532,0.07102454,70399.0,70393.0,0.07102949]
[1771132920777,0.09482068,70400.0,70390.0,0.000395]
[1771132920984,0.0237977,70399.0,70385.0,0.0002]
[1771132921230,0.59364065,70400.0,70385.0,0.0002]
[1771132921231,0.07053568,70388.0,70385.0,0.0002]
[1771132921435,0.0237977,70387.0,70382.0,0.07104063]
[1771132922253,0.07103765,70386.0,70380.0,0.07136281]
[1771132922482,0.07103593,70387.0,70380.0,0.07136281]
[1771132922684,0.0237977,70387.0,70381.0,0.07104165]
[1771132923283,0.0237977,70387.0,70382.0,0.07103996]
[1771132923990,0.07102577,70397.0,70382.0,0.20114039]
[1771132924186,0.07102748,70396.0,70388.0,0.07103398]
[1771132924385,0.07102715,70396.0,70389.0,0.07103368]
[1771132925011,0.07102577,70397.0,70388.0,0.07103398]
[1771132925012,0.0710279,70395.0,70388.0,0.07103398]
[1771132925349,0.0710279,70395.0,70388.0,0.07103382]
[1771132925549,0.0710279,70395.0,70383.0,0.02306435]
[1771132925934,0.09482446,70396.0,70388.0,0.07103479]
[1771132926131,0.07102842,70395.0,70388.0,0.07103479]
[1771132926740,0.07103188,70391.0,70384.0,0.07103839]
[1771132926922,0.07103188,70391.0,70388.0,0.0002]
[1771132928281,0.28412042,70393.0,70388.0,0.0002]
[1771132928424,0.07103362,70390.0,70388.0,0.0002]
[1771132928837,0.07103279,70391.0,70388.0,0.0002]
[1771132929236,0.07103098,70392.0,70388.0,0.0002]
[1771132929434,0.09482868,70392.0,70388.0,0.0002]
[1771132929642,0.0237977,70391.0,70388.0,0.0002]
[1771132930454,0.07103403,70389.0,70383.0,0.0002]
[1771132931085,0.0237977,70395.0,70383.0,0.0002]
[1771132931286,0.07104049,70383.0,70380.0,0.000395]
[1771132931528,0.09483819,70383.0,70380.0,0.000395]
[1771132931944,0.09483819,70383.0,70374.0,0.07104858]
[1771132931945,0.07104777,70376.0,70370.0,0.00032]
[1771132932130,0.07105887,70365.0,70362.0,0.42563132]
[1771132932316,0.0710546,70369.0,70360.0,0.00012]
[1771132932490,0.28421039,70371.0,70360.0,0.00012]
[1771132932491,0.09485399,70367.0,70363.0,0.0006332]
[1771132932885,0.07105883,70365.0,70363.0,0.0006332]
[1771132933084,0.0237977,70367.0,70363.0,0.0006332]
[1771132933818,0.07105704,70366.0,70363.0,0.0006332]
[1771132934230,0.07105906,70364.0,70363.0,0.0006332]
[1771132934379,0.02496853,70363.0,70360.0,0.00012]
[1771132934579,0.02540032,70363.0,70360.0,0.00012]
[1771132934804,0.00043179,70363.0,70360.0,0.00012]
[1771132935490,0.0714043,70363.0,70360.0,0.00012]
[1771132936048,0.00034335,70363.0,70360.0,0.00012]
[1771132936704,0.07140381,70363.0,70360.0,0.00012]
[1771132937239,0.07106209,70361.0,70360.0,0.00012]
[1771132937441,0.02496853,70362.0,70360.0,0.00012]
[1771132937649,0.00034335,70363.0,70360.0,0.00012]
[1771132938096,0.00034335,70363.0,70361.0,0.071062]
[1771132944154,0.00034335,70363.0,70360.0,0.00032]
[1771132944614,0.02496853,70362.0,70357.0,0.07106545]
[1771132945344,0.02496853,70362.0,70355.0,0.07106614]
[1771132945570,0.02496853,70362.0,70357.0,0.07106546]
[1771132946050,0.07106209,70361.0,70352.0,0.000275]
[1771132946275,0.07106836,70355.0,70352.0,0.000275]
[1771132946429,0.06449613,70354.0,70352.0,0.000275]
[1771132946611,0.02496853,70352.0,70346.0,0.07107724]
[1771132946950,0.02472853,70352.0,70345.0,0.0002]
[1771132947096,0.02496853,70351.0,70345.0,0.07127787]
[1771132948463,0.02496853,70351.0,70345.0,0.07107761]
[1771132948627,0.02496853,70351.0,70345.0,0.03869963]
[1771132949236,0.02496853,70351.0,70349.0,0.0002]
[1771132949540,0.07106915,70355.0,70349.0,0.0002]
[1771132949749,0.00012,70360.0,70356.0,0.07106633]
[1771132950084,5.748e-05,70360.0,70357.0,0.07106605]
[1771132950384,5.748e-05,70360.0,70356.0,0.07106687]
[1771132951829,5.748e-05,70360.0,70353.0,0.07106969]
[1771132952081,0.07112156,70360.0,70353.0,0.07106929]
[1771132952465,0.06970034,70360.0,70353.0,0.07106929]
[1771132952848,0.06970034,70360.0,70354.0,0.07106908]
[1771132953068,0.06970034,70360.0,70353.0,0.07106996]
[1771132953558,0.06970034,70360.0,70354.0,0.07106912]
[1771132954167,0.0710631,70360.0,70353.0,0.07107006]
[1771132954368,0.0710631,70360.0,70352.0,0.07107022]
[1771132955185,0.0710631,70360.0,70353.0,0.07106962]
[1771132955809,0.0710631,70360.0,70353.0,0.07126962]
[1771132957813,0.00074335,70363.0,70353.0,0.0002]
[1771132958011,0.00074335,70363.0,70349.0,2.312e-05]
[1771132958190,0.02496853,70355.0,70345.0,0.07127801]
[1771132958394,0.07107251,70351.0,70345.0,0.0002]
[1771132960028,0.07107251,70351.0,70345.0,0.07127825]
[1771132960254,0.07107205,70352.0,70345.0,0.0002]
[1771132960625,0.07107251,70351.0,70345.0,0.0002]
[1771132961627,0.07107251,70351.0,70345.0,0.0712782]
[1771132962032,0.41150603,70358.0,70349.0,0.07107348]
[1771132962510,0.07106715,70356.0,70350.0,0.07107221]
[1771132963314,0.07106715,70356.0,70349.0,0.07107348]
[1771132963703,0.06816715,70356.0,70349.0,0.07107348]
[1771132969332,0.0710682,70355.0,70349.0,0.07107348]
[1771132971415,0.0710682,70355.0,70349.0,0.06807348]
[1771132971827,0.0004,70368.0,70359.0,0.07106411]
[1771132972059,0.07105615,70367.0,70360.0,0.0710621]
[1771132972261,0.07105725,70366.0,70359.0,0.09489537]
[1771132972396,0.07105615,70367.0,70360.0,0.07106306]
[1771132972996,0.07105615,70367.0,70355.0,0.02383126]
[1771132973294,0.07180363,70363.0,70356.0,0.07106621]
[1771132973915,0.00074335,70363.0,70355.0,0.09489914]
[1771132974731,0.00074335,70363.0,70358.0,0.07106442]
[1771132974958,0.00074335,70363.0,70357.0,0.0710642]
[1771132975269,0.00074335,70363.0,70359.0,0.07106339]
[1771132975693,0.00074335,70363.0,70358.0,0.07106322]
[1771132975894,0.00074335,70363.0,70359.0,0.07106411]
[1771132977859,0.00074335,70363.0,70357.0,0.07106595]
[1771132978083,0.00074335,70363.0,70355.0,0.02383126]
[1771132978283,0.00074335,70363.0,70360.0,0.07106247]
[1771132978916,0.00074335,70363.0,70359.0,0.07106247]
[1771132979327,0.07180351,70363.0,70357.0,0.07106558]
[1771132979697,0.07180351,70363.0,70356.0,0.07106677]
[1771132979904,0.02463796,70357.0,70342.0,0.0002]
[1771132980081,0.07106787,70356.0,70349.0,0.07107349]
[1771132980286,0.09570437,70357.0,70350.0,0.07107306]
[1771132980501,0.09570437,70357.0,70351.0,0.07107202]
[1771132980682,0.09570437,70357.0,70350.0,0.07107292]
[1771132980886,0.02463796,70357.0,70345.0,0.0002]
[1771132981088,0.02463796,70349.0,70345.0,0.0002]
[1771132981694,0.07107833,70345.0,70342.0,0.0002]
[1771132982060,0.03871884,70345.0,70342.0,0.0002]
[1771132982418,0.07107737,70346.0,70342.0,0.0002]
[1771132982814,0.07107656,70347.0,70342.0,0.0002]
[1771132983402,0.07107724,70346.0,70342.0,0.0002]
[1771132983843,0.07107586,70348.0,70342.0,0.0002]
[1771132984364,0.07107727,70346.0,70342.0,0.0002]
[1771132988223,0.07108027,70343.0,70335.0,0.0710875]
[1771132988409,0.07108223,70342.0,70335.0,0.0710875]
[1771132988612,0.07108223,70342.0,70337.0,0.0002]
[1771132988849,0.07108152,70342.0,70337.0,0.0002]
[1771132989062,0.07108027,70343.0,70337.0,0.0002]
[1771132989212,0.02463796,70349.0,70337.0,0.0002]
[1771132989422,0.02463796,70345.0,70337.0,0.0002]
[1771132989683,0.07108495,70339.0,70337.0,0.0002]
[1771132989815,0.02463796,70340.0,70334.0,0.0004978]
[1771132990020,0.07109139,70332.0,70330.0,0.00012]
[1771132990239,0.02463796,70337.0,70322.0,0.74075132]
[1771132990444,0.02463796,70331.0,70321.0,1e-08]
[1771132990660,0.34044,70338.0,70320.0,0.2973213]
[1771132990888,0.00012,70340.0,70328.0,0.32103256]
[1771132991019,0.07108488,70339.0,70331.0,0.07109229]
[1771132991221,0.07120336,70340.0,70331.0,0.07109229]
[1771132991416,0.07108476,70339.0,70328.0,0.52440367]
[1771132991617,0.19309739,70338.0,70320.0,0.00024991]
[1771132991903,0.07109416,70330.0,70322.0,0.07110096]
[1771132992255,0.02463796,70332.0,70322.0,0.07110096]
[1771132992256,0.07109416,70331.0,70322.0,0.07110096]
[1771132992452,0.07109546,70328.0,70321.0,0.07110172]
[1771132992655,0.07109456,70329.0,70322.0,0.07110134]
[1771132992828,0.07109456,70329.0,70321.0,0.07110172]
[1771132993032,0.07109456,70329.0,70318.0,0.02383126]
[1771132993224,0.07109456,70329.0,70321.0,0.07110156]
[1771132993990,0.07121366,70330.0,70322.0,0.07110131]
[1771132994406,0.07093185,70329.0,70322.0,0.07110131]
[1771132994611,0.00012,70330.0,70323.0,0.07110011]
[1771132995024,0.00012,70330.0,70325.0,0.0002]
[1771132995219,0.09508865,70330.0,70325.0,0.0002]
[1771132995362,0.07121364,70330.0,70325.0,0.0002]
[1771132995558,0.02387501,70329.0,70325.0,0.0002]
[1771132995961,0.09496953,70329.0,70325.0,0.0002]
[1771132996166,0.02387501,70329.0,70325.0,0.0002]
[1771132996764,0.02387501,70329.0,70325.0,0.07129805]
[1771132997708,0.02387501,70329.0,70325.0,0.0002]
[1771132997911,0.07109746,70326.0,70325.0,0.0002]
[1771132998262,0.0710965,70327.0,70325.0,0.0002]
[1771132998822,0.0710965,70327.0,70325.0,0.0003]
[1771132999067,0.07109543,70328.0,70325.0,0.0003]
[1771132999881,0.02387501,70329.0,70325.0,0.0003]
[1771133000124,0.02387501,70329.0,70325.0,0.07139846]
[1771133000728,0.02387501,70339.0,70325.0,0.0003]
[1771133000927,0.28433824,70339.0,70326.0,0.07109675]
[1771133001229,0.09497752,70321.0,70320.0,1e-08]
[1771133001451,0.07110453,70319.0,70318.0,1e-08]
[1771133002254,0.02387501,70321.0,70318.0,1e-08]
[1771133002692,0.07110251,70321.0,70320.0,0.0002]
[1771133003624,0.07110199,70322.0,70320.0,0.0002]
[1771133003827,0.07110251,70321.0,70320.0,0.0002]
[1771133006499,0.02387501,70326.0,70320.0,0.0002]
[1771133006500,0.07110139,70323.0,70320.0,0.0002]
[1771133006697,0.07109875,70325.0,70320.0,0.0002]
[1771133007041,0.00012,70330.0,70320.0,0.02270547]
[1771133007042,0.07109765,70326.0,70320.0,0.02270547]
[1771133007171,0.07109868,70325.0,70320.0,0.02270547]
[1771133007583,0.07109954,70324.0,70320.0,0.02270547]
[1771133011012,0.07109954,70324.0,70320.0,0.0002]
[1771133011433,0.07109869,70325.0,70320.0,0.0002]
[1771133011631,0.00012,70330.0,70322.0,0.0711015]
[1771133011963,0.07121423,70330.0,70323.0,0.0711]
[1771133012113,0.00012,70340.0,70321.0,0.20281769]
[1771133012312,0.0004,70346.0,70332.0,0.07109038]
[1771133012520,0.07107192,70352.0,70345.0,0.07107799]
[1771133012721,0.07107298,70351.0,70343.0,0.07107987]
[1771133012930,0.07107447,70349.0,70342.0,0.07108092]
[1771133013632,0.07119406,70350.0,70342.0,0.00013004]
[1771133013831,0.07119407,70350.0,70343.0,0.07107968]
[1771133014036,0.07107428,70349.0,70342.0,0.07121105]
[1771133014263,0.00012,70350.0,70342.0,0.00013004]
[1771133014458,0.0711935,70350.0,70343.0,0.07108027]
[1771133016809,0.07107439,70349.0,70343.0,0.07108027]
[1771133017174,0.07107439,70349.0,70342.0,0.00013004]
[1771133017175,0.07107439,70349.0,70342.0,0.07121099]
[1771133017556,0.0715935,70350.0,70343.0,0.07108018]
[1771133018136,0.07107445,70349.0,70342.0,0.07121097]
[1771133018584,0.07159332,70350.0,70343.0,0.07107948]
[1771133018798,0.00052,70350.0,70344.0,0.07107841]
[1771133019428,0.00052,70350.0,70345.0,0.07107738]
[1771133019585,0.00052,70350.0,70342.0,0.00013004]
[1771133019788,0.00052,70350.0,70346.0,0.07107637]
[1771133020005,0.00052,70350.0,70348.0,0.07107517]
[1771133020212,0.00052,70350.0,70346.0,0.07107637]
[1771133020726,0.00048,70350.0,70346.0,0.07107637]
[1771133020939,0.00048,70350.0,70346.0,0.07107699]
[1771133021133,0.07177465,70354.0,70344.0,0.20281769]
[1771133021134,0.0007046,70354.0,70344.0,0.20281769]
[1771133021432,0.0007046,70354.0,70348.0,0.07107517]
[1771133021639,0.07107017,70353.0,70345.0,0.02308097]
[1771133021791,0.07107017,70353.0,70342.0,0.00013004]
[1771133022131,0.0007046,70354.0,70345.0,0.21316468]
[1771133022338,0.0007046,70354.0,70349.0,0.07107343]
[1771133025540,0.0007046,70354.0,70350.0,0.07107255]
[1771133026145,0.0007046,70354.0,70349.0,0.07107343]
[1771133026863,0.0007046,70354.0,70350.0,0.07107306]
[1771133027542,0.0004,70358.0,70356.0,0.07106621]
[1771133027745,0.0004,70358.0,70357.0,0.07106613]
[1771133028372,0.0004,70358.0,70356.0,0.07106685]
[1771133029771,0.0004,70358.0,70355.0,0.07106625]
[1771133031001,0.0004,70358.0,70353.0,0.07106943]
[1771133031204,0.0004,70358.0,70357.0,0.07106613]
[1771133031996,0.0004,70358.0,70356.0,0.07106704]
[1771133032199,0.0004,70358.0,70355.0,0.07106776]
[1771133032732,0.07106674,70357.0,70350.0,0.07107279]
[1771133032885,0.07106674,70357.0,70349.0,0.07107382]
[1771133033079,0.07106674,70357.0,70350.0,0.07107255]
[1771133033281,0.07106674,70357.0,70351.0,0.0710719]
[1771133033936,0.07106674,70357.0,70350.0,0.07107284]
[1771133034101,0.07146545,70358.0,70350.0,0.07107287]
[1771133034452,0.07146545,70358.0,70351.0,0.0710714]
[1771133034937,0.07146545,70358.0,70354.0,0.0002]
[1771133035545,0.07106619,70357.0,70354.0,0.0002]
[1771133035955,0.0004,70358.0,70354.0,0.0002]
[1771133036719,0.07146534,70358.0,70354.0,0.0002]
[1771133038351,0.07106815,70355.0,70347.0,0.07107589]
[1771133038690,0.02280398,70357.0,70346.0,0.0002]
[1771133038838,0.0004,70358.0,70346.0,0.0002]
[1771133039036,0.07146539,70358.0,70351.0,0.07107197]
[1771133040666,0.0004,70358.0,70354.0,0.07106849]
[1771133041222,0.0004,70358.0,70347.0,0.02331129]
[1771133041223,0.0004,70358.0,70355.0,0.07106807]
[1771133041363,0.0004,70358.0,70354.0,0.07106889]
[1771133043490,0.0004,70358.0,70348.0,0.28429938]
[1771133043688,0.07146581,70358.0,70351.0,0.07107145]
[1771133044121,0.0004,70358.0,70348.0,0.29715008]
[1771133044324,0.0004,70358.0,70355.0,0.07106719]
[1771133044567,1e-08,70371.0,70370.0,0.071053]
[1771133044716,1e-08,70371.0,70370.0,0.29004203]
[1771133044913,1e-08,70371.0,70370.0,0.09436429]